bitfinex/quotes_BTCUSD_20240602
["timestamp","ask_amount","ask_price","bid_price","bid_amount"]
[1717339554839,2.13032304,68177.0,68176.0,0.0232235]
[1717339555266,2.10491691,68177.0,68176.0,0.0232235]
[1717339556127,2.06891691,68177.0,68176.0,0.0232235]
[1717339556346,2.06891691,68177.0,68176.0,5e-07]
[1717339556783,2.06991691,68177.0,68176.0,5e-07]
[1717339557267,2.10591691,68177.0,68176.0,5e-07]
[1717339557484,2.28872245,68177.0,68176.0,5e-07]
[1717339557690,2.21572245,68177.0,68176.0,5e-07]
[1717339558120,2.28872245,68177.0,68176.0,5e-07]
[1717339558327,2.21472245,68177.0,68176.0,5e-07]
[1717339559389,2.17872245,68177.0,68176.0,5e-07]
[1717339559855,1.95681691,68177.0,68176.0,5e-07]
[1717339560069,2.00591691,68177.0,68176.0,5e-07]
[1717339561766,1.17516291,68177.0,68176.0,5e-07]
[1717339561971,1.15216291,68177.0,68176.0,5e-07]
[1717339562169,1.20126291,68177.0,68176.0,0.3241005]
[1717339562371,1.20126291,68177.0,68176.0,0.32699653]
[1717339562550,1.15216291,68177.0,68176.0,0.32699653]
[1717339562754,1.11616291,68177.0,68176.0,0.32699653]
[1717339562916,1.07916291,68177.0,68176.0,0.32699653]
[1717339563116,0.82180891,68177.0,68176.0,0.32699653]
[1717339563315,0.75880891,68177.0,68176.0,0.48989653]
[1717339563767,0.39245491,68177.0,68176.0,0.48989653]
[1717339563916,0.46445491,68177.0,68176.0,0.48989653]
[1717339564327,0.46445491,68177.0,68176.0,0.4870005]
[1717339564538,0.46445491,68177.0,68176.0,0.48988709]
[1717339564955,0.46445491,68177.0,68176.0,0.54898709]
[1717339564956,0.072,68177.0,68176.0,0.54898709]
[1717339565366,0.11743018,68176.0,68169.0,0.1]
[1717339565578,0.11743018,68176.0,68170.0,0.15223714]
[1717339565782,0.11743018,68176.0,68171.0,0.20133714]
[1717339566012,0.11743018,68176.0,68172.0,0.15223714]
[1717339566220,0.11743018,68176.0,68173.0,0.15223714]
[1717339566478,0.11743018,68176.0,68174.0,0.15223714]
[1717339566682,0.11743018,68176.0,68174.0,0.00277365]
[1717339567346,0.12543018,68176.0,68171.0,0.00686658]
[1717339567549,0.12543018,68176.0,68172.0,0.15223229]
[1717339567748,0.12543018,68176.0,68173.0,0.15223229]
[1717339567892,0.14043018,68176.0,68174.0,0.001]
[1717339568097,0.14043018,68176.0,68174.0,0.00377365]
[1717339568513,0.14043018,68176.0,68175.0,0.3495]
[1717339568699,0.13743018,68176.0,68175.0,0.35227319]
[1717339568904,0.14743018,68176.0,68175.0,0.35227319]
[1717339569445,0.13743018,68176.0,68175.0,0.35227319]
[1717339569773,0.13143018,68176.0,68175.0,0.35227319]
[1717339570247,0.14343018,68176.0,68175.0,0.35227319]
[1717339570578,0.28920809,68176.0,68175.0,0.00277319]
[1717339570778,0.44588709,68176.0,68175.0,0.35227319]
[1717339570976,0.43388709,68176.0,68175.0,0.3495]
[1717339571178,0.45288709,68176.0,68175.0,0.35313359]
[1717339571378,0.4981758,68176.0,68175.0,0.35313359]
[1717339571751,0.55288709,68176.0,68175.0,0.00363359]
[1717339572670,0.53888709,68176.0,68175.0,0.00363359]
[1717339572892,0.85824509,68176.0,68175.0,0.00363359]
[1717339573102,0.146689,68171.0,68170.0,0.3495]
[1717339573310,0.40246691,68171.0,68170.0,0.3495]
[1717339574634,0.42746691,68171.0,68170.0,0.3495]
[1717339576581,0.44746691,68171.0,68170.0,0.3495]
[1717339576792,0.43746691,68171.0,68170.0,0.3495]
[1717339577970,0.291689,68171.0,68170.0,0.3495]
[1717339578184,0.291689,68171.0,68170.0,0.3445]
[1717339578406,0.291689,68171.0,68170.0,0.34713595]
[1717339580992,0.291689,68171.0,68170.0,0.22970577]
[1717339581993,0.045,68171.0,68170.0,0.22970577]
[1717339582408,0.045,68171.0,68170.0,0.22706982]
[1717339582626,0.045,68171.0,68170.0,0.22966271]
[1717339583799,0.045,68171.0,68170.0,0.32966271]
[1717339584009,0.045,68171.0,68170.0,0.60489703]
[1717339584214,0.045,68171.0,68170.0,0.75158903]
[1717339584415,0.02,68171.0,68170.0,0.75158903]
[1717339584822,0.021,68171.0,68170.0,0.75458903]
[1717339585467,0.001,68171.0,68170.0,0.75458903]
[1717339585874,0.003,68171.0,68170.0,0.75458903]
[1717339586110,0.002,68171.0,68170.0,0.79537904]
[1717339586327,0.146664,68183.0,68172.0,0.3731]
[1717339586538,0.146664,68183.0,68174.0,0.3731]
[1717339586737,0.146664,68183.0,68176.0,0.3731]
[1717339587179,0.146664,68183.0,68177.0,0.00251474]
[1717339587383,0.146664,68183.0,68178.0,0.3731]
[1717339587597,0.146664,68183.0,68178.0,0.37561428]
[1717339587598,0.006,68183.0,68178.0,0.37561428]
[1717339587835,0.14667,68181.0,68178.0,0.37561428]
[1717339588242,0.001,68183.0,68178.0,0.37561428]
[1717339588558,0.101,68183.0,68178.0,0.37561428]
[1717339588869,0.1,68183.0,68178.0,0.37561428]
[1717339589074,0.1,68183.0,68178.0,0.3731]
[1717339589278,0.117,68183.0,68179.0,0.00251382]
[1717339589671,0.1,68183.0,68179.0,0.00251382]
[1717339589938,0.119,68183.0,68179.0,0.00251382]
[1717339590166,0.139,68183.0,68179.0,0.00251382]
[1717339590372,0.12,68183.0,68179.0,0.00251382]
[1717339590595,0.275664,68183.0,68179.0,0.00351382]
[1717339591020,0.299664,68183.0,68179.0,0.001]
[1717339592799,0.299664,68183.0,68180.0,0.1835]
[1717339593221,0.299664,68183.0,68181.0,0.0025129]
[1717339593833,0.246664,68183.0,68181.0,0.0025129]
[1717339594039,0.127,68183.0,68181.0,0.0025129]
[1717339594261,0.127,68183.0,68182.0,0.3731]
[1717339594262,0.027,68183.0,68182.0,0.3731]
[1717339594569,0.027,68183.0,68182.0,0.37561244]
[1717339594773,0.06,68183.0,68182.0,0.37561244]
[1717339595262,0.033,68183.0,68182.0,0.37561244]
[1717339595634,0.063,68183.0,68182.0,0.37561244]
[1717339596082,0.033,68183.0,68182.0,0.37561244]
[1717339596431,0.103,68183.0,68182.0,0.37561244]
[1717339596638,0.17,68183.0,68182.0,0.37561244]
[1717339597262,0.034,68183.0,68182.0,0.37561244]
[1717339597486,0.034,68183.0,68182.0,0.68211244]
[1717339597917,0.034,68183.0,68182.0,0.55911244]
[1717339598298,0.01,68199.0,68182.0,0.00251244]
[1717339598508,0.146644,68192.0,68184.0,0.5566]
[1717339598716,0.1,68191.0,68184.0,0.5566]
[1717339598934,0.1,68191.0,68186.0,0.5566]
[1717339599407,0.1,68191.0,68187.0,0.00251015]
[1717339600391,0.133,68191.0,68187.0,0.00251015]
[1717339600987,0.133,68191.0,68187.0,0.00351015]
[1717339600988,0.169,68191.0,68187.0,0.00351015]
[1717339601762,0.2,68191.0,68187.0,0.00351015]
[1717339602772,0.346647,68191.0,68187.0,0.00351015]
[1717339602972,0.146653,68188.0,68187.0,0.00351015]
[1717339603184,0.146653,68188.0,68187.0,0.001]
[1717339603185,0.68853091,68188.0,68187.0,0.001]
[1717339604216,0.01,68186.0,68179.0,0.3731]
[1717339604550,0.146666,68183.0,68180.0,0.00249766]
[1717339604976,0.146667,68182.0,68178.0,0.1835]
[1717339605172,0.146668,68181.0,68178.0,0.1835]
[1717339608214,0.147668,68181.0,68179.0,0.001]
[1717339608619,0.147668,68181.0,68178.0,0.1835]
[1717339608975,0.147668,68181.0,68178.0,0.1845]
[1717339608976,0.152668,68181.0,68178.0,0.1845]
[1717339609185,0.14667,68180.0,68178.0,0.1845]
[1717339609351,0.14667,68180.0,68178.0,0.1835]
[1717339609783,0.14667,68180.0,68179.0,0.001]
[1717339609919,0.14667,68180.0,68178.0,0.1835]
[1717339610338,0.14667,68180.0,68179.0,0.00250626]
[1717339610565,0.14667,68180.0,68179.0,0.15472999]
[1717339611097,0.14667,68180.0,68179.0,0.00250626]
[1717339611381,0.14767,68180.0,68179.0,0.00250626]
[1717339611623,0.001,68180.0,68179.0,0.00250626]
[1717339612035,0.14577791,68187.0,68179.0,0.00250626]
[1717339612245,0.008,68180.0,68179.0,0.00350626]
[1717339612488,0.012,68180.0,68179.0,0.15573128]
[1717339612692,0.012,68180.0,68179.0,0.00350626]
[1717339612863,0.012,68180.0,68179.0,0.15573128]
[1717339613093,0.146669,68181.0,68179.0,0.15473128]
[1717339613294,0.146669,68181.0,68179.0,0.00350626]
[1717339614956,0.004,68180.0,68179.0,0.00250626]
[1717339615106,0.012,68180.0,68179.0,0.15573062]
[1717339615478,0.146669,68181.0,68179.0,0.15473062]
[1717339615672,0.164669,68181.0,68179.0,0.00250626]
[1717339616634,0.018,68181.0,68179.0,0.00250626]
[1717339616813,0.018,68181.0,68179.0,0.0083724]
[1717339617018,0.018,68181.0,68179.0,0.00250626]
[1717339617396,0.018,68181.0,68180.0,0.15222077]
[1717339617780,0.018,68181.0,68180.0,0.1547181]
[1717339618367,0.146668,68181.0,68180.0,0.1547181]
[1717339618566,0.146668,68181.0,68180.0,0.00249733]
[1717339618733,0.146671,68180.0,68176.0,0.3672]
[1717339618933,0.146671,68180.0,68177.0,0.15222583]
[1717339619146,0.146672,68179.0,68178.0,0.15222583]
[1717339619593,0.146672,68179.0,68178.0,0.15222769]
[1717339620348,0.146672,68179.0,68169.0,0.04389567]
[1717339620349,0.01,68177.0,68169.0,0.04389567]
[1717339620545,0.146698,68168.0,68164.0,0.04389567]
[1717339620750,0.1467,68166.0,68165.0,0.1522448]
[1717339621604,0.146702,68165.0,68164.0,0.0492]
[1717339621796,0.146702,68165.0,68164.0,0.20145269]
[1717339622408,0.146702,68165.0,68164.0,0.0492]
[1717339622912,0.148702,68165.0,68164.0,0.20145306]
[1717339623123,0.148702,68165.0,68164.0,0.2014527]
[1717339623349,0.150702,68165.0,68164.0,0.0492]
[1717339623875,0.150702,68165.0,68163.0,0.009438]
[1717339624946,0.148702,68165.0,68163.0,0.009438]
[1717339625532,0.150702,68165.0,68164.0,0.00241585]
[1717339625785,0.150702,68165.0,68164.0,0.15466593]
[1717339625987,0.004,68165.0,68164.0,0.15466593]
[1717339626528,0.146694,68169.0,68164.0,0.00241585]
[1717339626727,0.002,68165.0,68164.0,0.00241585]
[1717339627044,0.002,68165.0,68164.0,0.15466378]
[1717339627408,0.002,68165.0,68164.0,0.35116378]
[1717339627409,0.004,68165.0,68164.0,0.35116378]
[1717339627605,0.004,68165.0,68164.0,0.39505945]
[1717339628190,0.004,68165.0,68164.0,0.35116378]
[1717339628191,0.002,68165.0,68164.0,0.35116378]
[1717339628390,0.002,68165.0,68164.0,0.39505945]
[1717339628589,0.002,68165.0,68164.0,0.19891585]
[1717339629019,0.002,68165.0,68164.0,0.35116322]
[1717339629200,0.002,68165.0,68164.0,0.19891585]
[1717339629201,0.004,68165.0,68164.0,0.19891585]
[1717339632012,0.146698,68167.0,68164.0,0.19891585]
[1717339632459,0.004,68165.0,68164.0,0.19891585]
[1717339632902,0.002,68165.0,68164.0,0.19891585]
[1717339633053,0.003,68165.0,68164.0,0.19891585]
[1717339633824,0.146701,68166.0,68164.0,0.19891585]
[1717339635164,0.003,68165.0,68164.0,0.19891585]
[1717339635606,0.014,68165.0,68164.0,0.19891585]
[1717339636580,0.032,68165.0,68164.0,0.19891585]
[1717339637148,0.032,68165.0,68164.0,0.35116652]
[1717339637551,0.032,68165.0,68164.0,0.19891585]
[1717339638558,0.032,68165.0,68164.0,0.35116727]
[1717339639154,0.032,68165.0,68164.0,0.35116664]
[1717339639513,0.032,68165.0,68164.0,0.19891585]
[1717339641344,0.032,68165.0,68164.0,0.00241585]
[1717339642424,0.032,68165.0,68164.0,0.15466768]
[1717339642577,0.032,68165.0,68164.0,0.00241585]
[1717339645178,0.032,68165.0,68164.0,0.15466671]
[1717339645937,0.032,68165.0,68164.0,0.20386671]
[1717339649101,0.032,68165.0,68164.0,0.83027662]
[1717339649542,0.032,68165.0,68164.0,0.78636671]
[1717339649976,0.032,68165.0,68164.0,0.83030389]
[1717339650135,0.032,68165.0,68164.0,0.78636671]
[1717339651093,0.032,68165.0,68164.0,0.85223157]
[1717339651302,0.032,68165.0,68164.0,0.78636671]
[1717339651961,0.032,68165.0,68164.0,0.83030925]
[1717339652692,0.032,68165.0,68164.0,0.78636671]
[1717339653746,0.032,68165.0,68164.0,0.85223157]
[1717339654156,0.032,68165.0,68164.0,1.17745615]
[1717339654636,0.032,68165.0,68164.0,0.85223157]
[1717339655168,0.032,68165.0,68164.0,1.17745756]
[1717339655336,0.032,68165.0,68164.0,1.1115927]
[1717339655912,0.014,68165.0,68164.0,1.1115927]
[1717339656136,0.015,68165.0,68164.0,1.1115927]
[1717339656537,0.146682,68175.0,68164.0,1.1115927]
[1717339656798,0.146682,68175.0,68171.0,0.0492]
[1717339657118,0.146682,68175.0,68172.0,0.15225086]
[1717339657245,0.146682,68175.0,68172.0,0.15465406]
[1717339657450,0.146682,68175.0,68173.0,0.15225086]
[1717339657650,0.146682,68175.0,68174.0,0.15225086]
[1717339657855,0.146682,68175.0,68174.0,0.15465315]
[1717339658294,0.146682,68175.0,68174.0,0.00240229]
[1717339658492,0.167682,68175.0,68174.0,0.00240229]
[1717339658700,0.146684,68174.0,68171.0,0.0492]
[1717339658871,0.146684,68174.0,68172.0,0.15223909]
[1717339659083,0.146684,68174.0,68173.0,0.15223909]
[1717339659291,0.146684,68174.0,68173.0,0.15464183]
[1717339660087,0.171684,68174.0,68173.0,0.15464183]
[1717339661119,0.196684,68174.0,68173.0,0.15464183]
[1717339661519,0.171684,68174.0,68173.0,0.15464183]
[1717339661956,0.200684,68174.0,68173.0,0.00240274]
[1717339662163,0.200684,68174.0,68171.0,0.0492]
[1717339662164,0.146685,68173.0,68171.0,0.0492]
[1717339662360,0.146685,68173.0,68172.0,0.15223957]
[1717339662532,0.146685,68173.0,68172.0,0.15464277]
[1717339663520,0.167685,68173.0,68172.0,0.15464277]
[1717339664292,0.185685,68173.0,68172.0,0.15464277]
[1717339664423,0.185685,68173.0,68172.0,0.19863312]
[1717339664630,0.146685,68173.0,68172.0,0.0024032]
[1717339664830,0.146685,68173.0,68172.0,0.15464327]
[1717339665031,0.193685,68173.0,68172.0,0.19863362]
[1717339665663,0.193685,68173.0,68172.0,0.04639355]
[1717339665873,0.193685,68173.0,68172.0,0.19863107]
[1717339666527,0.193685,68173.0,68172.0,0.15464072]
[1717339666734,0.193685,68173.0,68172.0,0.19864621]
[1717339666996,0.193685,68173.0,68172.0,0.0024032]
[1717339667551,0.193685,68173.0,68172.0,0.19864881]
[1717339668476,0.047,68173.0,68172.0,0.15464332]
[1717339669101,0.047,68173.0,68172.0,0.79752885]
[1717339669304,0.047,68173.0,68172.0,1.05674794]
[1717339669480,0.047,68173.0,68172.0,1.14472865]
[1717339670258,0.047,68173.0,68172.0,1.14474004]
[1717339670575,0.047,68173.0,68172.0,1.05674794]
[1717339671209,0.047,68173.0,68172.0,1.14473078]
[1717339672457,0.047,68173.0,68172.0,1.05674794]
[1717339672861,0.047,68173.0,68172.0,1.16672383]
[1717339673077,0.047,68173.0,68172.0,1.26672383]
[1717339673277,0.047,68173.0,68172.0,1.15674794]
[1717339673507,0.047,68173.0,68172.0,1.05674794]
[1717339673713,0.047,68173.0,68172.0,1.15674794]
[1717339674494,0.047,68173.0,68172.0,1.15673205]
[1717339674918,0.047,68173.0,68172.0,1.05673205]
[1717339675269,0.025,68173.0,68172.0,1.30341905]
[1717339675473,0.11582919,68199.0,68176.0,0.1]
[1717339675675,0.01,68200.0,68176.0,0.1]
[1717339675676,0.01,68200.0,68190.0,0.0492]
[1717339675882,0.14664,68195.0,68193.0,0.0492]
[1717339676914,0.14664,68195.0,68186.0,0.00586522]
[1717339677115,0.1,68194.0,68190.0,0.0492]
[1717339677317,0.1,68194.0,68191.0,0.15220549]
[1717339677520,0.1,68194.0,68192.0,0.15220549]
[1717339677988,0.1,68194.0,68193.0,0.1545785]
[1717339678384,0.123,68194.0,68193.0,0.1545785]
[1717339679114,0.1,68194.0,68193.0,0.00237301]
[1717339679320,0.1,68194.0,68193.0,0.15457417]
[1717339679688,0.1,68194.0,68193.0,0.15220116]
[1717339679943,0.1,68194.0,68193.0,0.15457417]
[1717339680146,0.125,68194.0,68193.0,0.15457417]
[1717339680498,0.1,68194.0,68193.0,0.15457417]
[1717339680701,0.1,68194.0,68193.0,0.00237301]
[1717339680935,0.129,68194.0,68193.0,0.00237301]
[1717339681147,0.162,68194.0,68193.0,0.001]
[1717339681518,0.162,68194.0,68193.0,0.0502]
[1717339683589,0.30864,68194.0,68193.0,0.001]
[1717339683792,0.68084,68194.0,68193.0,0.001]
[1717339693911,1.02271791,68194.0,68193.0,0.001]
[1717339694202,1.36519791,68194.0,68193.0,0.001]
[1717339694953,0.5725,68180.0,68175.0,0.0492]
[1717339695148,0.5725,68180.0,68176.0,0.15222444]
[1717339695384,0.5725,68180.0,68177.0,0.15222444]
[1717339695581,0.5725,68180.0,68178.0,0.20142444]
[1717339695743,0.5725,68180.0,68179.0,0.15222444]
[1717339695944,0.5725,68180.0,68179.0,0.15457612]
[1717339696375,0.5845,68180.0,68179.0,0.15457612]
[1717339697190,0.6035,68180.0,68179.0,0.15457612]
[1717339698257,0.6235,68180.0,68179.0,0.15457612]
[1717339699087,0.6235,68180.0,68179.0,0.15457301]
[1717339699323,0.6235,68180.0,68179.0,0.15222133]
[1717339699512,0.6235,68180.0,68179.0,0.15457301]
[1717339700261,0.6235,68180.0,68179.0,0.1545776]
[1717339702047,0.71917,68180.0,68179.0,0.1545776]
[1717339702223,0.74017,68180.0,68179.0,0.1545776]
[1717339702410,0.75917,68180.0,68179.0,0.15222592]
[1717339702610,0.73817,68180.0,68179.0,0.15222592]
[1717339702813,0.71917,68180.0,68179.0,0.15222592]
[1717339703014,0.74417,68180.0,68179.0,0.15222592]
[1717339703216,0.76617,68180.0,68179.0,0.15222592]
[1717339707416,0.3534,68179.0,68171.0,0.04389953]
[1717339707614,0.3534,68177.0,68173.0,0.0492]
[1717339707817,0.3534,68177.0,68174.0,0.15222677]
[1717339708016,0.3534,68177.0,68175.0,0.15222677]
[1717339708217,0.3534,68177.0,68176.0,0.15222677]
[1717339708418,0.3534,68177.0,68176.0,0.15459114]
[1717339709239,0.3644,68177.0,68176.0,0.15459114]
[1717339709440,0.3744,68177.0,68176.0,0.15459114]
[1717339709601,0.3754,68177.0,68176.0,0.00236437]
[1717339709808,0.3894,68177.0,68176.0,0.00236437]
[1717339710009,0.3894,68177.0,68171.0,0.0492]
[1717339710010,0.3794,68177.0,68171.0,0.0492]
[1717339710211,0.146679,68176.0,68172.0,0.15223416]
[1717339710417,0.146679,68176.0,68173.0,0.15223416]
[1717339710634,0.146679,68176.0,68174.0,0.15223416]
[1717339710834,0.146679,68176.0,68175.0,0.15223416]
[1717339711261,0.146679,68176.0,68175.0,0.15461199]
[1717339711595,0.147679,68176.0,68175.0,0.00237783]
[1717339711936,0.148679,68176.0,68175.0,0.15223315]
[1717339712233,0.159679,68176.0,68175.0,0.15452074]
[1717339712382,0.158679,68176.0,68175.0,0.15452074]
[1717339712610,0.158679,68176.0,68175.0,0.00228759]
[1717339712611,0.167679,68176.0,68175.0,0.00228759]
[1717339713223,0.167679,68176.0,68171.0,0.0492]
[1717339713481,0.167679,68176.0,68172.0,0.15223345]
[1717339713686,0.167679,68176.0,68173.0,0.15223345]
[1717339713810,0.167679,68176.0,68174.0,0.15223345]
[1717339714015,0.167679,68176.0,68173.0,0.00229108]
[1717339714220,0.167679,68176.0,68175.0,0.00229017]
[1717339714427,0.155679,68176.0,68175.0,0.00229017]
[1717339714642,0.147679,68176.0,68175.0,0.00229017]
[1717339714877,0.147679,68176.0,68171.0,0.0492]
[1717339715077,0.149679,68176.0,68172.0,0.15223363]
[1717339715299,0.149679,68176.0,68175.0,0.00229568]
[1717339715500,0.147679,68176.0,68171.0,0.0492]
[1717339715715,0.146679,68176.0,68173.0,0.00229672]
[1717339715920,0.146679,68176.0,68174.0,0.15223388]
[1717339715921,0.158679,68176.0,68174.0,0.15223388]
[1717339716095,0.158679,68176.0,68174.0,0.00229626]
[1717339716326,0.146679,68176.0,68175.0,0.15223312]
[1717339716544,0.146679,68176.0,68175.0,0.15452892]
[1717339716732,0.158679,68176.0,68175.0,0.15452892]
[1717339717865,0.160679,68176.0,68175.0,0.15452892]
[1717339718293,0.169679,68176.0,68175.0,0.15452892]
[1717339718753,0.160679,68176.0,68175.0,0.15452892]
[1717339719134,0.172679,68176.0,68175.0,0.15452892]
[1717339722480,0.026,68176.0,68175.0,0.15452892]
[1717339722684,0.026,68176.0,68175.0,0.67202892]
[1717339722885,0.026,68176.0,68175.0,0.74814111]
[1717339723100,0.026,68176.0,68175.0,1.13915253]
[1717339723311,0.026,68176.0,68175.0,1.07330324]
[1717339723513,0.026,68176.0,68175.0,1.22250324]
[1717339723941,0.026,68176.0,68175.0,1.3103023]
[1717339724584,0.146657,68186.0,68175.0,1.3103023]
[1717339724796,0.146657,68186.0,68185.0,0.0492]
[1717339724998,0.146657,68186.0,68185.0,0.20143312]
[1717339725388,0.3534,68188.0,68185.0,0.20372129]
[1717339725590,0.3534,68188.0,68186.0,0.15223312]
[1717339725794,0.14665,68190.0,68187.0,0.15223312]
[1717339725995,0.14665,68190.0,68188.0,0.20143312]
[1717339726200,0.14665,68190.0,68188.0,0.0492]
[1717339726326,0.14665,68190.0,68189.0,0.00228634]
[1717339726533,0.14665,68190.0,68188.0,0.0492]
[1717339726776,0.14665,68190.0,68189.0,0.00228634]
[1717339727329,0.14665,68190.0,68188.0,0.0492]
[1717339727730,0.14665,68190.0,68189.0,0.00228634]
[1717339727968,0.14665,68190.0,68188.0,0.0492]
[1717339728173,0.16965,68190.0,68183.0,0.1824]
[1717339728299,0.20165,68190.0,68189.0,0.00227678]
[1717339728507,0.20165,68190.0,68183.0,0.0492]
[1717339728746,0.17865,68190.0,68189.0,0.00227678]
[1717339728952,0.17865,68190.0,68184.0,0.1522077]
[1717339728953,0.20865,68190.0,68183.0,0.0492]
[1717339729111,0.20865,68190.0,68189.0,0.00227678]
[1717339729313,0.20865,68190.0,68183.0,0.0492]
[1717339729514,0.20865,68190.0,68189.0,0.00227678]
[1717339729735,0.20865,68190.0,68183.0,0.0492]
[1717339729937,0.21865,68190.0,68189.0,0.00227678]
[1717339730140,0.20865,68190.0,68183.0,0.0492]
[1717339730313,0.20865,68190.0,68189.0,0.00227678]
[1717339730520,0.20865,68190.0,68184.0,0.15220812]
[1717339730521,0.17865,68190.0,68183.0,0.0492]
[1717339730719,0.17865,68190.0,68189.0,0.00227678]
[1717339731056,0.17865,68190.0,68183.0,0.0492]
[1717339731057,0.15565,68190.0,68183.0,0.0492]
[1717339731261,0.15565,68190.0,68189.0,0.00227678]
[1717339731495,0.16665,68190.0,68183.0,0.0492]
[1717339731665,0.14665,68190.0,68189.0,0.00227678]
[1717339732041,0.20765,68190.0,68183.0,0.0492]
[1717339732244,0.20765,68190.0,68184.0,0.1522074]
[1717339732445,0.20765,68190.0,68185.0,0.1522074]
[1717339732446,0.17865,68190.0,68185.0,0.1522074]
[1717339732645,0.18965,68190.0,68186.0,0.15220682]
[1717339732996,0.18965,68190.0,68186.0,0.00227816]
[1717339733570,0.18965,68190.0,68187.0,0.0022777]
[1717339734100,0.19865,68190.0,68186.0,0.0492]
[1717339734304,0.15565,68190.0,68181.0,0.04389953]
[1717339734510,0.14665,68190.0,68188.0,0.00227724]
[1717339734635,0.16465,68190.0,68187.0,0.0022777]
[1717339734845,0.18765,68190.0,68185.0,0.0492]
[1717339735380,0.18965,68190.0,68186.0,0.00227816]
[1717339735708,0.19165,68190.0,68186.0,0.00227816]
[1717339735977,0.14865,68190.0,68186.0,0.00227816]
[1717339737431,0.16665,68190.0,68186.0,0.00227816]
[1717339737629,0.146651,68189.0,68186.0,0.00227816]
[1717339738774,0.165651,68189.0,68186.0,0.00227816]
[1717339738991,0.186651,68189.0,68186.0,0.00227816]
[1717339744693,0.5434,68188.0,68186.0,0.00227816]
[1717339745105,0.5434,68188.0,68185.0,0.0492]
[1717339747810,0.5804,68188.0,68185.0,0.0492]
[1717339748004,0.727053,68188.0,68181.0,0.04389953]
[1717339748202,0.727053,68188.0,68182.0,0.15220782]
[1717339748203,0.708053,68188.0,68182.0,0.15220782]
[1717339748406,0.724053,68188.0,68183.0,0.15220782]
[1717339748663,0.724053,68188.0,68182.0,0.00228217]
[1717339748664,0.724053,68188.0,68184.0,0.15220782]
[1717339748804,0.724053,68188.0,68184.0,0.00228125]
[1717339749018,0.708053,68188.0,68184.0,0.00228125]
[1717339749225,0.710053,68188.0,68185.0,0.15220967]
[1717339749427,0.710053,68188.0,68185.0,0.00228079]
[1717339749774,0.710053,68188.0,68181.0,0.09309953]
[1717339750071,0.692053,68188.0,68186.0,0.00228033]
[1717339750275,0.692053,68188.0,68181.0,0.09309953]
[1717339750474,0.699053,68188.0,68187.0,0.00227987]
[1717339750650,0.699053,68188.0,68181.0,0.09309953]
[1717339750857,0.697053,68188.0,68187.0,0.00227987]
[1717339751054,0.713053,68188.0,68181.0,0.0502]
[1717339751278,0.713053,68188.0,68187.0,0.00227987]
[1717339751279,0.706053,68188.0,68187.0,0.00227987]
[1717339751482,0.694053,68188.0,68181.0,0.0502]
[1717339751715,0.719053,68188.0,68187.0,0.00227987]
[1717339751862,0.717053,68188.0,68187.0,0.00227987]
[1717339752186,0.717053,68188.0,68181.0,0.0492]
[1717339752396,0.717053,68188.0,68182.0,0.15221231]
[1717339752529,0.715053,68188.0,68183.0,0.15221231]
[1717339752886,0.715053,68188.0,68184.0,0.15221231]
[1717339753261,0.715053,68188.0,68185.0,0.15221231]
[1717339753465,0.719053,68188.0,68186.0,0.15221231]
[1717339753673,0.694053,68188.0,68186.0,0.00218389]
[1717339754037,0.694053,68188.0,68181.0,0.0492]
[1717339754217,0.717053,68188.0,68182.0,0.15221231]
[1717339754452,0.717053,68188.0,68183.0,0.15221231]
[1717339754650,0.705053,68188.0,68184.0,0.15221231]
[1717339754864,0.701053,68188.0,68185.0,0.15221231]
[1717339755010,0.720053,68188.0,68186.0,0.15221231]
[1717339755210,0.741053,68188.0,68186.0,0.00210505]
[1717339755409,0.722053,68188.0,68186.0,0.00210505]
[1717339755616,0.731053,68188.0,68181.0,0.0492]
[1717339755816,0.731053,68188.0,68182.0,0.15221235]
[1717339756015,0.731053,68188.0,68183.0,0.15221235]
[1717339756194,0.731053,68188.0,68184.0,0.15221235]
[1717339756436,0.731053,68188.0,68185.0,0.15221238]
[1717339756437,0.699053,68188.0,68185.0,0.15221238]
[1717339756648,0.699053,68188.0,68186.0,0.15221238]
[1717339756837,0.699053,68188.0,68186.0,0.00194313]
[1717339757194,0.701053,68188.0,68183.0,0.0492]
[1717339757401,0.709053,68188.0,68184.0,0.15221235]
[1717339757609,0.709053,68188.0,68185.0,0.15221235]
[1717339757610,0.146655,68187.0,68185.0,0.15221235]
[1717339757863,0.146655,68187.0,68186.0,0.15221235]
[1717339758066,0.146655,68187.0,68186.0,0.15415548]
[1717339759461,0.678555,68187.0,68186.0,0.15415548]
[1717339759783,0.678555,68187.0,68186.0,0.15221235]
[1717339759986,0.039,68188.0,68176.0,0.04392254]
[1717339759987,0.156668,68181.0,68176.0,0.04392254]
[1717339760193,0.668571,68180.0,68177.0,0.15222552]
[1717339760398,0.668571,68180.0,68178.0,0.15222552]
[1717339760399,0.146673,68179.0,68178.0,0.15222552]
[1717339760809,0.156673,68179.0,68178.0,0.15417232]
[1717339761416,0.146673,68179.0,68178.0,0.15417232]
[1717339761640,0.156673,68179.0,68178.0,0.15417232]
[1717339761842,0.156673,68179.0,68178.0,0.0019468]
[1717339762042,0.168673,68179.0,68178.0,0.0019468]
[1717339762268,0.168673,68179.0,68178.0,0.15223092]
[1717339762563,0.168673,68179.0,68174.0,0.04392254]
[1717339762564,0.146676,68178.0,68174.0,0.04392254]
[1717339762787,0.146676,68178.0,68175.0,0.15223103]
[1717339762975,0.022,68179.0,68174.0,0.04392254]
[1717339762976,0.146679,68176.0,68174.0,0.04392254]
[1717339763183,0.3397,68175.0,68174.0,0.04392254]
[1717339763414,0.3397,68175.0,68174.0,0.15223078]
[1717339764282,0.486381,68175.0,68174.0,0.15223078]
[1717339764481,0.498381,68175.0,68174.0,0.15223078]
[1717339764679,0.501381,68175.0,68174.0,0.15223078]
[1717339765001,0.679081,68175.0,68174.0,0.15223078]